bitfinex-derivatives/quotes_BNBF0:USTF0_20250521
["timestamp","ask_amount","ask_price","bid_price","bid_amount"]
[1747789114972,3.32958578,650.68,650.06,0.30767898]
[1747789115170,3.32958578,650.68,650.07,0.58700784]
[1747789115371,3.32958578,650.68,650.08,0.58700784]
[1747789115567,2.28658578,650.68,650.06,0.30767898]
[1747789115768,2.28658578,650.68,650.07,0.58699844]
[1747789115969,2.28658578,650.68,650.08,0.58699844]
[1747789116169,2.28658578,650.68,650.05,0.849]
[1747789116368,2.28658578,650.68,650.06,0.58699844]
[1747789116570,2.28658578,650.68,650.07,0.58699844]
[1747789116772,2.28658578,650.68,650.08,0.58699844]
[1747789117072,2.28658578,650.66,650.05,0.849]
[1747789117272,2.28658578,650.66,650.06,0.58699146]
[1747789117568,2.28658578,650.66,650.07,0.58699146]
[1747789117768,2.28658578,650.66,650.08,0.58699146]
[1747789117968,2.28658578,650.66,650.05,0.849]
[1747789118170,2.28658578,650.66,650.06,1.38023581]
[1747789118370,2.28658578,650.66,650.07,0.58698596]
[1747789118573,2.28658578,650.66,650.08,0.58698596]
[1747789118771,1.037,650.65,650.05,0.849]
[1747789118973,1.037,650.65,650.06,0.58698202]
[1747789119172,1.037,650.65,650.07,0.58698202]
[1747789119473,1.037,650.65,650.08,0.58698202]
[1747789119674,1.037,650.65,650.07,0.30767944]
[1747789119874,1.037,650.65,650.08,0.58697879]
[1747789120176,1.037,650.65,650.07,0.30767944]
[1747789120368,1.037,650.65,650.08,0.58697996]
[1747789120669,1.037,650.65,650.05,0.849]
[1747789120871,1.037,650.65,650.06,0.58698052]
[1747789121068,1.037,650.65,650.07,0.58698052]
[1747789121273,1.037,650.65,650.08,0.58698052]
[1747789121473,1.037,650.65,650.05,0.849]
[1747789121773,1.037,650.65,650.06,0.58697876]
[1747789121972,1.037,650.65,650.07,0.58697876]
[1747789122175,1.037,650.65,650.08,0.58697876]
[1747789122368,1.037,650.65,650.05,0.849]
[1747789122571,1.037,650.65,650.06,0.58698209]
[1747789122771,1.037,650.65,650.07,0.58698209]
[1747789122972,2.28658578,650.5,650.05,0.849]
[1747789123172,2.28658578,650.5,650.06,0.58698246]
[1747789123375,2.28658578,650.5,650.07,0.58698246]
[1747789123577,2.28658578,650.5,650.05,0.849]
[1747789125582,2.28658578,650.58,650.05,0.849]
[1747789128184,2.28658578,650.55,650.05,0.849]
[1747789128484,2.28658578,650.55,649.76,0.25990302]
[1747789128685,2.28658578,650.55,649.77,0.58704351]
[1747789128983,2.28658578,650.55,649.78,1.38071749]
[1747789129184,2.28658578,650.55,649.79,0.58704351]
[1747789129386,2.28658578,650.55,649.8,1.38071749]
[1747789129584,2.28658578,650.55,649.81,0.58705861]
[1747789129783,2.28658578,650.55,649.82,1.38073259]
[1747789129987,2.28658578,650.55,649.83,0.58705861]
[1747789130190,2.28658578,650.55,649.84,0.58705861]
[1747789130483,2.28658578,650.55,649.85,1.6884294]
[1747789130688,2.28658578,650.55,649.86,0.58705861]
[1747789130883,2.28658578,650.55,649.87,1.38073259]
[1747789131084,2.28658578,650.55,649.88,0.58705861]
[1747789131282,2.28658578,650.55,649.89,0.58705861]
[1747789131592,2.28658578,650.55,649.9,1.38073259]
[1747789131888,2.28658578,650.55,649.91,1.6884294]
[1747789132086,2.28658578,650.55,649.92,0.58705861]
[1747789132387,2.28658578,650.55,649.93,1.38073259]
[1747789132588,2.28658578,650.55,649.94,0.58705861]
[1747789132786,2.28658578,650.55,649.95,1.38073259]
[1747789132986,2.28658578,650.55,649.96,0.58705861]
[1747789133182,2.28658578,650.55,649.97,1.38073259]
[1747789133384,2.28658578,650.55,649.98,0.58705861]
[1747789133584,2.28658578,650.55,649.99,1.38073259]
[1747789133786,2.28658578,650.55,650.0,0.58705861]
[1747789133988,2.28658578,650.55,650.01,0.58705861]
[1747789134284,2.28658578,650.55,650.02,1.38073259]
[1747789134487,2.28658578,650.55,650.03,0.58705861]
[1747789134785,2.28658578,650.55,650.04,0.58705861]
[1747789135084,2.28658578,650.55,650.05,0.58705861]
[1747789135287,2.28658578,650.55,650.06,0.58705861]
[1747789135484,2.28658578,650.55,650.07,0.58705861]
[1747789135686,2.28658578,650.55,650.08,0.58705861]
[1747789135884,2.28658578,650.55,650.09,0.58705861]
[1747789136083,2.28658578,650.53,649.89,1.248]
[1747789136286,2.28658578,650.53,649.9,1.38097909]
[1747789136482,2.28658578,650.53,649.9,0.79381478]
[1747789136690,2.28658578,650.53,649.91,0.58718427]
[1747789136889,2.28658578,650.53,649.92,1.38099905]
[1747789137089,2.28658578,650.53,649.93,0.58718427]
[1747789137290,0.937,650.52,649.94,0.58718427]
[1747789137484,0.937,650.52,649.95,0.58718427]
[1747789137684,0.937,650.52,649.96,0.58718427]
[1747789137885,0.937,650.52,649.97,1.38099905]
[1747789138192,0.937,650.52,649.98,1.38099905]
[1747789138388,0.937,650.52,649.99,0.58718427]
[1747789138592,0.937,650.52,650.0,0.58718427]
[1747789138787,0.937,650.52,650.01,1.38099905]
[1747789138989,0.937,650.52,650.02,1.38099905]
[1747789139189,0.937,650.52,650.03,0.58718427]
[1747789139388,0.937,650.52,650.04,1.38099905]
[1747789139692,0.937,650.52,650.05,0.58718427]
[1747789139891,0.937,650.52,650.06,0.58718427]
[1747789140091,0.937,650.52,650.07,0.58718427]
[1747789140392,0.937,650.52,650.08,0.58718427]
[1747789140594,0.937,650.52,650.09,0.58718427]
[1747789140788,0.937,650.52,649.89,1.248]
[1747789141092,0.937,650.52,649.9,0.58725109]
[1747789141286,0.937,650.52,649.91,0.58725109]
[1747789141486,0.937,650.52,649.92,1.38120125]
[1747789141690,0.937,650.52,649.93,0.58725109]
[1747789141990,0.937,650.52,649.94,0.58725109]
[1747789142190,0.937,650.52,649.95,0.58725109]
[1747789142487,0.937,650.52,649.96,1.38120125]
[1747789142793,0.937,650.52,649.97,1.38120125]
[1747789143092,0.937,650.52,649.98,0.58727957]
[1747789143286,0.937,650.52,649.99,0.58727957]
[1747789143491,2.28658578,650.5,650.0,1.38122973]
[1747789143788,2.28658578,650.5,650.01,0.58727957]
[1747789143986,2.28658578,650.5,650.02,0.58727957]
[1747789144185,2.28658578,650.5,649.99,0.30769532]
[1747789144393,2.28658578,650.5,650.0,0.58736408]
[1747789144588,2.28658578,650.5,650.01,0.58736408]
[1747789144796,2.28658578,650.5,649.89,1.248]
[1747789144987,2.28658578,650.5,649.9,1.38156997]
[1747789145190,2.28658578,650.5,649.91,0.58740707]
[1747789145391,2.28658578,650.5,649.92,1.38156997]
[1747789145593,2.28658578,650.5,649.93,0.58740707]
[1747789145793,2.28658578,650.5,649.94,0.58740707]
[1747789145994,2.28658578,650.5,649.95,0.58740707]
[1747789146295,2.28658578,650.44,649.95,0.3077446]
[1747789148397,2.28658578,650.44,649.74,0.25990302]
[1747789148599,2.28658578,650.44,649.75,0.58709416]
[1747789148898,2.28658578,650.44,649.76,1.38082352]
[1747789149098,2.28658578,650.44,649.77,0.58709416]
[1747789149291,2.28658578,650.44,649.78,0.58709416]
[1747789149492,2.28658578,650.44,649.79,1.38082352]
[1747789149692,2.28658578,650.44,649.8,1.38082352]
[1747789149895,0.937,650.52,649.81,0.58709416]
[1747789149896,2.28658578,650.46,649.81,0.58709416]
[1747789150092,2.28658578,650.46,649.82,0.58697855]
[1747789150296,2.28658578,650.46,649.83,0.58697855]
[1747789150495,2.28658578,650.46,649.84,0.58697855]
[1747789150700,2.28658578,650.46,649.85,1.38070791]
[1747789150893,2.28658578,650.46,649.86,0.58697855]
[1747789151098,2.28658578,650.46,649.87,0.58697855]
[1747789151292,2.28658578,650.46,649.88,1.38070791]
[1747789151497,2.28658578,650.46,649.89,0.58697855]
[1747789151693,2.28658578,650.46,649.9,0.58697855]
[1747789151895,2.28658578,650.46,649.91,0.5868705]
[1747789152198,2.28658578,650.46,649.92,0.5868705]
[1747789152497,2.28658578,650.46,649.93,0.5868705]
[1747789152697,2.28658578,650.46,649.9,0.30774337]
[1747789152894,2.28658578,650.46,649.91,0.58682433]
[1747789153100,2.28658578,650.46,649.92,0.58682433]
[1747789153293,2.28658578,650.46,649.93,0.58682433]
[1747789153497,2.28658578,650.46,649.94,0.58682433]
[1747789153698,2.28658578,650.46,649.95,0.58682433]
[1747789153998,2.28658578,650.46,649.96,0.58682433]
[1747789154298,2.28658578,650.46,649.93,0.30774337]
[1747789154502,2.28658578,650.46,649.94,0.58675171]
[1747789154695,2.28658578,650.46,649.95,0.58675171]
[1747789154899,2.28658578,650.46,649.96,0.58675171]
[1747789155197,2.28658578,650.46,649.76,0.795]
[1747789155398,2.28658578,650.46,649.77,0.58672023]
[1747789155600,2.28658578,650.46,649.78,1.38001577]
[1747789155900,2.28658578,650.46,649.79,0.58672023]
[1747789156100,2.28658578,650.46,649.8,0.58672023]
[1747789156298,2.28658578,650.46,649.81,0.58672023]
[1747789156497,2.28658578,650.46,649.82,0.58672023]
[1747789156699,2.28658578,650.41,649.83,1.38001577]
[1747789156898,2.28658578,650.41,649.84,0.58672023]
[1747789157094,2.28658578,650.41,649.85,1.37998539]
[1747789157302,2.28658578,650.41,649.86,1.37998539]
[1747789157600,2.28658578,650.41,649.87,0.58668985]
[1747789157798,2.28658578,650.41,649.88,0.58668985]
[1747789157999,2.28658578,650.41,649.89,0.89443367]
[1747789158197,2.28658578,650.41,649.9,0.58668985]
[1747789158401,2.28658578,650.41,649.91,1.37998539]
[1747789158699,2.28658578,650.41,649.92,0.58668985]
[1747789158899,2.28658578,650.41,649.93,0.58668985]
[1747789159097,2.28658578,650.41,649.94,0.58668985]
[1747789159303,2.28658578,650.41,649.95,0.58668985]
[1747789159504,2.28658578,650.41,649.89,0.30774382]
[1747789159801,2.28658578,650.41,649.9,1.37983689]
[1747789159995,2.28658578,650.41,649.91,1.37983689]
[1747789160197,2.28658578,650.41,649.92,1.37983689]
[1747789160401,2.28658578,650.41,649.93,0.58664346]
[1747789160596,2.28658578,650.41,649.94,0.58663825]
[1747789160799,2.28658578,650.41,649.95,0.58663825]
[1747789161003,2.28658578,650.41,649.76,0.795]
[1747789161203,2.28658578,650.41,649.77,0.58663821]
[1747789161403,2.28658578,650.41,649.78,0.58663821]
[1747789161605,2.28658578,650.41,649.79,0.58663821]
[1747789161903,2.28658578,650.41,649.76,0.795]
[1747789161904,2.28658578,650.41,649.8,1.37980409]
[1747789162204,2.28658578,650.41,649.81,1.37980409]
[1747789162403,2.28658578,650.41,649.82,0.58659931]
[1747789162605,2.28658578,650.41,649.83,0.58659931]
[1747789162800,2.28658578,650.41,649.84,0.58659931]
[1747789163003,2.28658578,650.42,649.85,0.58659931]
[1747789163204,2.28658578,650.42,649.86,1.37976519]
[1747789163401,2.28658578,650.42,649.87,0.58659931]
[1747789163605,2.28658578,650.42,649.88,1.37976519]
[1747789163805,2.28658578,650.42,649.89,0.58659931]
[1747789164107,2.28658578,650.42,649.9,0.58659931]
[1747789164307,2.28658578,650.42,649.82,0.3077446]
[1747789164502,2.28658578,650.42,649.83,0.89433788]
[1747789164702,2.28658578,650.42,649.84,1.37964299]
[1747789164906,2.28658578,650.42,649.85,0.58659328]
[1747789165107,2.28658578,650.42,649.86,1.37964299]
[1747789165403,2.28658578,650.42,649.87,0.58659328]
[1747789165604,2.28658578,650.42,649.88,0.58659328]
[1747789165807,2.28658578,650.42,649.89,0.58659328]
[1747789166103,0.937,650.52,649.9,0.58659328]
[1747789166309,2.28658578,650.55,649.91,0.58659328]
[1747789166508,2.28658578,650.55,649.88,0.3077446]
[1747789166711,2.28658578,650.55,649.89,0.58646167]
[1747789166911,0.26767686,650.54,649.9,0.58646167]
[1747789167108,0.26767686,650.54,649.91,0.58646167]
[1747789167311,0.26767686,650.54,649.88,0.3077446]
[1747789167509,0.26767686,650.54,649.89,0.89413085]
[1747789167710,0.26767686,650.54,649.9,0.58638625]
[1747789167908,0.26767686,650.54,649.91,0.58638625]
[1747789168109,0.26767686,650.54,649.89,0.3077446]
[1747789168309,0.26767686,650.54,649.91,0.929]
[1747789168909,2.28658578,650.55,649.91,0.929]
[1747789169312,0.817,650.54,649.91,0.929]
[1747789170515,0.817,650.54,649.92,0.58629478]
[1747789170813,0.817,650.54,649.93,0.58630577]
[1747789171015,0.817,650.54,649.94,0.89404532]
[1747789171214,0.817,650.54,649.95,0.58630577]
[1747789171414,0.817,650.54,649.94,0.30773955]
[1747789171717,0.817,650.54,649.95,0.58630412]
[1747789172014,0.817,650.54,649.96,0.58630412]
[1747789172210,0.817,650.54,649.97,0.58630412]
[1747789172419,0.817,650.54,649.98,0.58630412]
[1747789172616,0.817,650.54,649.99,0.58630412]
[1747789172816,0.817,650.54,649.94,0.30773955]
[1747789173011,0.817,650.54,649.95,1.37881858]
[1747789173210,0.817,650.54,649.96,0.58630686]
[1747789173410,0.817,650.54,649.97,0.58630686]
[1747789173614,0.817,650.54,649.98,0.58630686]
[1747789173816,0.817,650.54,649.99,0.58630686]
[1747789174012,0.817,650.54,649.91,0.929]
[1747789174211,0.817,650.54,649.92,1.37883811]
[1747789174414,0.817,650.54,649.93,0.58633325]
[1747789174610,0.817,650.54,649.94,0.58633325]
[1747789174811,0.817,650.54,649.95,1.37883811]
[1747789175015,0.817,650.54,649.96,0.58633325]
[1747789175216,0.817,650.54,649.97,1.37883811]
[1747789175415,0.817,650.54,649.98,0.58633325]
[1747789175615,0.817,650.54,649.99,0.58633325]
[1747789175815,0.817,650.54,650.0,0.58633325]
[1747789176014,0.817,650.54,650.01,0.58639207]
[1747789176215,0.817,650.54,649.95,0.30771746]
[1747789176416,0.817,650.54,649.96,0.58640465]
[1747789176716,0.817,650.54,649.97,1.37862517]
[1747789176910,0.817,650.54,649.98,0.58640465]
[1747789177115,0.817,650.54,649.99,0.58640465]
[1747789177314,0.817,650.54,650.0,0.58640465]
[1747789177518,0.817,650.54,649.91,0.929]
[1747789177717,2.28658578,650.49,649.92,1.37874537]
[1747789177917,2.28658578,650.49,649.93,0.58645338]
[1747789178219,2.28658578,650.49,649.94,0.58645338]
[1747789178417,2.28658578,650.49,649.95,0.58645338]
[1747789178619,2.28658578,650.49,649.96,0.58645338]
[1747789178816,2.28658578,650.49,649.97,1.37874537]
[1747789179020,2.28658578,650.49,649.98,0.58645338]
[1747789179216,2.28658578,650.49,649.99,0.58645338]
[1747789179418,2.28658578,650.49,650.0,0.58645338]
[1747789179617,2.28658578,650.49,650.01,1.37874537]
[1747789179818,2.28658578,650.49,650.02,0.5865003]
[1747789180017,2.28658578,650.49,650.01,0.79229199]
[1747789180018,2.28658578,650.49,650.03,0.5865003]
[1747789180220,2.28658578,650.49,650.04,0.5865003]
[1747789180417,2.28658578,650.51,650.05,0.5865003]
[1747789180623,2.28658578,650.51,650.06,0.5865003]
[1747789180923,2.28658578,650.51,650.07,0.5865003]
[1747789181123,2.28658578,650.51,649.91,0.929]
[1747789181124,2.28658578,650.51,650.08,0.5865003]
[1747789181418,2.28658578,650.51,649.91,0.929]
[1747789181623,2.28658578,650.51,649.92,0.58643714]
[1747789181817,2.28658578,650.51,649.93,0.58643714]
[1747789182021,2.28658578,650.51,649.94,0.58643714]
[1747789182221,2.28658578,650.51,649.95,0.58643714]
[1747789182421,2.28658578,650.51,649.96,1.37872896]
[1747789182622,2.28658578,650.51,649.97,0.58643714]
[1747789182818,2.28658578,650.51,649.98,1.37872896]
[1747789183021,2.28658578,650.51,649.99,0.58643714]
[1747789183217,2.28658578,650.51,650.0,0.58643809]
[1747789183422,2.28658578,650.51,650.01,1.37872991]
[1747789183620,2.28658578,650.51,650.02,0.58643809]
[1747789183919,2.28658578,650.52,650.03,1.37872991]
[1747789184118,2.28658578,650.52,650.04,0.58643809]
[1747789184325,2.28658578,650.52,650.05,0.58643809]
[1747789184526,2.28658578,650.52,650.06,0.58643809]
[1747789184727,2.28658578,650.52,650.07,0.58643809]
[1747789185028,2.28658578,650.52,649.91,0.929]
[1747789185331,2.28658578,650.52,649.92,1.37852667]
[1747789185522,2.28658578,650.52,649.93,0.58641541]
[1747789185821,2.28658578,650.52,649.94,0.58641541]
[1747789186020,2.28658578,650.52,649.95,1.37852667]
[1747789186224,2.28658578,650.52,649.96,0.58641541]
[1747789186421,2.28658578,650.52,649.97,1.37852667]
[1747789186621,2.28658578,650.52,649.97,0.79211126]
[1747789186821,2.28658578,650.52,649.98,1.37846261]
[1747789187026,2.28658578,650.52,649.99,1.37846261]
[1747789187223,2.28658578,650.52,650.0,0.58635135]
[1747789187424,0.817,650.54,650.01,1.37846261]
[1747789187626,0.817,650.54,650.02,1.37846261]
[1747789187828,0.817,650.54,650.03,1.37846261]
[1747789188023,0.817,650.54,650.04,0.58635135]
[1747789188227,0.817,650.54,650.05,0.58635135]
[1747789188528,0.817,650.54,650.06,0.58635135]
[1747789188824,0.817,650.54,650.07,0.58635135]
[1747789189027,0.817,650.54,649.91,0.929]
[1747789189229,0.817,650.54,649.92,0.58628599]
[1747789189428,0.817,650.54,649.93,0.58628599]
[1747789189728,0.817,650.54,649.94,0.58628599]
[1747789189928,0.817,650.54,649.95,1.37801877]
[1747789190128,0.817,650.54,649.96,0.58628599]
[1747789190323,0.817,650.54,649.97,1.37801877]
[1747789190527,0.817,650.54,649.98,0.58628599]
[1747789190724,0.817,650.54,649.99,1.37801877]
[1747789191029,0.817,650.54,650.0,1.37801877]
[1747789191223,0.817,650.54,650.01,0.58628599]
[1747789191429,0.817,650.54,650.02,0.58628599]
[1747789191625,0.817,650.54,650.03,0.58628599]
[1747789191829,0.817,650.54,650.04,0.58628599]
[1747789192024,0.817,650.54,650.05,0.58628599]
[1747789192230,0.817,650.54,650.02,0.30767939]
[1747789192432,0.817,650.54,650.03,0.58621202]
[1747789192629,0.817,650.54,650.04,0.58621202]
[1747789192828,0.817,650.54,650.05,0.58621202]
[1747789193025,0.817,650.54,649.91,0.929]
[1747789193232,0.817,650.54,649.92,0.58620475]
[1747789193530,0.817,650.54,649.93,0.58620475]
[1747789193728,0.817,650.54,649.94,0.58618713]
[1747789193928,0.817,650.54,649.95,0.58618713]
[1747789194125,0.817,650.54,649.96,1.37786387]
[1747789194330,0.817,650.54,649.97,0.58618713]
[1747789194533,0.817,650.54,649.98,1.37786387]
[1747789194731,0.817,650.54,649.99,0.58618713]
[1747789194935,0.817,650.54,650.0,1.37786387]
[1747789195131,0.817,650.54,650.01,0.58618713]
[1747789195331,0.817,650.54,650.02,0.58618713]
[1747789195634,0.817,650.54,650.03,0.58618713]
[1747789195834,0.817,650.54,649.97,0.30767903]
[1747789196028,0.817,650.54,649.98,0.58614946]
[1747789196230,0.817,650.54,649.99,0.58614946]
[1747789196429,0.817,650.54,650.0,0.58614946]
[1747789196735,0.817,650.54,650.01,1.37764298]
[1747789196935,0.817,650.54,650.02,0.58614946]
[1747789197137,0.817,650.54,650.03,0.58614946]
[1747789197433,2.28658578,650.64,650.0,0.30767903]
[1747789197636,2.28658578,650.64,650.01,0.58612592]
[1747789197836,2.28658578,650.64,650.02,0.58612592]
[1747789198036,2.28658578,650.67,650.03,0.58612592]
[1747789198231,2.28658578,650.67,650.01,0.30767903]
[1747789198433,2.28658578,650.67,650.02,0.58611008]
[1747789198632,2.28658578,650.67,650.03,0.58611008]
[1747789198837,2.28658578,650.67,650.01,0.30767903]
[1747789199036,2.28658578,650.67,650.04,0.30767903]
[1747789199838,2.28658578,650.67,650.04,1.18367903]
[1747789200140,1.276,650.66,650.04,1.18367903]
[1747789200544,1.276,650.66,650.04,0.876]
[1747789202244,2.28658578,650.59,650.04,0.876]
[1747789208253,2.28658578,650.59,650.05,0.58605612]
[1747789208452,2.28658578,650.59,650.04,0.876]
[1747789208654,2.28658578,650.63,650.04,0.876]
[1747789208847,2.28658578,650.63,650.05,0.58595511]
[1747789209050,2.28658578,650.63,650.04,0.876]
[1747789209251,2.28658578,650.63,650.05,0.58595789]
[1747789209549,2.28658578,650.63,650.06,0.58595789]
[1747789209747,2.28658578,650.63,650.07,0.58595789]
[1747789209949,2.28658578,650.63,650.08,0.58595789]
[1747789210152,2.28658578,650.63,650.09,0.58586202]
[1747789210353,2.28658578,650.63,650.04,0.876]
[1747789210747,2.28658578,650.63,650.05,0.5857878]
[1747789210953,2.28658578,650.63,650.06,0.5857878]
[1747789211153,2.28658578,650.63,650.07,0.5857878]
[1747789211348,2.28658578,650.63,650.08,0.5857878]
[1747789211547,2.28658578,650.63,650.04,0.876]
[1747789211750,2.28658578,650.63,650.05,0.58572647]
[1747789211948,2.28658578,650.63,650.06,0.58572647]
[1747789212151,1.276,650.66,650.07,0.58572647]
[1747789212351,1.276,650.66,650.04,0.876]
[1747789212547,1.276,650.66,650.05,0.58572903]
[1747789212751,1.276,650.66,650.06,0.58572903]
[1747789212949,1.276,650.66,650.07,0.58572903]
[1747789213148,1.276,650.66,650.08,0.58567374]
[1747789213353,1.276,650.66,650.04,0.876]
[1747789213648,1.276,650.66,650.05,1.37616748]
[1747789213847,1.276,650.66,650.06,0.58567314]
[1747789214046,1.276,650.66,650.05,0.79049434]
[1747789214250,1.276,650.66,650.06,0.58562018]
[1747789214452,1.276,650.66,650.07,0.58562018]
[1747789214652,1.276,650.66,650.08,0.58562018]
[1747789214849,1.276,650.66,650.09,0.58562018]
[1747789215047,1.276,650.66,650.04,0.876]
[1747789215350,1.276,650.66,650.05,1.37603996]
[1747789215552,1.276,650.66,650.06,0.58557655]
[1747789215852,1.276,650.66,650.07,0.58557655]
[1747789216053,1.276,650.66,650.08,0.58557655]
[1747789216248,1.276,650.66,650.09,0.58557655]
[1747789216450,1.276,650.66,650.1,0.58557655]
[1747789216754,1.276,650.66,650.11,0.58557655]
[1747789216953,1.276,650.66,650.12,0.58557655]
[1747789217147,1.276,650.66,650.09,0.30760639]
[1747789217452,1.276,650.66,650.04,0.876]
[1747789218049,1.276,650.66,650.05,0.58549834]
[1747789218348,2.5541906,650.77,650.04,0.876]
[1747789218552,2.5541906,650.77,650.05,0.58550243]
[1747789218850,2.5541906,650.77,650.04,0.876]
[1747789220050,2.28658578,650.66,650.04,0.876]
[1747789221551,2.28658578,650.66,650.05,0.58558811]
[1747789221751,1.195,650.65,650.06,0.58558811]
[1747789221954,1.195,650.65,650.07,0.58558735]
[1747789222155,1.195,650.65,650.08,0.58558735]
[1747789222353,1.195,650.65,650.09,0.58558735]
[1747789222556,1.195,650.65,650.1,0.58558735]
[1747789222757,1.195,650.65,650.11,0.58558735]
[1747789223057,1.195,650.65,650.12,0.58558735]
[1747789223258,1.195,650.65,650.04,0.876]
[1747789223455,1.195,650.65,650.05,1.37544402]
[1747789223654,1.195,650.65,650.06,0.58549508]
[1747789223854,1.195,650.65,650.07,0.58549508]
[1747789224059,1.195,650.65,650.08,0.58549508]
[1747789224356,1.195,650.65,650.09,0.58549508]
[1747789224557,1.195,650.65,650.1,1.37544402]
[1747789224754,1.195,650.65,650.11,0.58549508]
[1747789224959,1.195,650.65,650.12,0.58549508]
[1747789225260,1.195,650.65,650.13,0.58549508]
[1747789225459,1.195,650.65,650.14,0.58549508]
[1747789225659,1.195,650.65,650.04,0.876]
[1747789225957,1.195,650.65,650.05,0.5854862]
[1747789226156,1.195,650.65,650.06,1.37537067]
[1747789226359,1.195,650.65,650.07,0.5854862]
[1747789226558,1.195,650.65,650.06,0.78988447]
[1747789226753,1.195,650.65,650.07,0.58551005]
[1747789226956,1.195,650.65,650.08,0.58551005]
[1747789227158,1.195,650.65,650.09,0.58551005]
[1747789227355,1.195,650.65,649.77,0.25990302]
[1747789227556,1.195,650.65,649.78,0.58563562]
[1747789227754,1.195,650.65,649.79,0.58563562]
[1747789227955,1.195,650.65,649.8,0.58563562]
[1747789228155,1.195,650.65,649.81,1.3761013]
[1747789228356,2.28658578,650.56,649.82,0.58563562]
[1747789228660,2.28658578,650.56,649.83,1.3761013]
[1747789228860,2.28658578,650.56,649.84,0.58563562]
[1747789229063,2.28658578,650.56,649.85,1.3761013]
[1747789229257,2.28658578,650.56,649.86,1.3761013]
[1747789229463,2.28658578,650.56,649.87,0.893282]
[1747789229661,2.28658578,650.56,649.88,1.3761013]
[1747789229857,2.28658578,650.56,649.89,0.58563562]
[1747789230061,2.28658578,650.56,649.9,0.58563562]
[1747789230362,2.28658578,650.56,649.91,0.58563562]
[1747789230565,2.28658578,650.56,649.92,1.3761013]
[1747789230859,2.28658578,650.56,649.93,0.58563562]
[1747789231063,2.28658578,650.56,649.94,0.58563562]
[1747789231257,2.28658578,650.56,649.95,0.58563562]
[1747789231459,2.28658578,650.56,649.96,1.3761013]
[1747789231659,2.28658578,650.56,649.97,0.58563562]
[1747789231863,2.28658578,650.49,649.98,0.58563562]
[1747789232063,2.28658578,650.49,649.99,0.58563562]
[1747789232263,2.28658578,650.49,650.0,0.58563562]
[1747789232463,2.28658578,650.49,650.01,0.58563562]
[1747789232665,2.28658578,650.49,649.9,1.021]
[1747789232967,2.28658578,650.49,649.91,0.58617377]
[1747789233266,2.28658578,650.49,649.92,1.37851482]
[1747789233460,2.28658578,650.49,649.93,0.58617377]
[1747789233660,2.28658578,650.49,649.94,1.37855654]
[1747789233861,2.28658578,650.49,649.95,0.58621549]
[1747789234059,2.28658578,650.49,649.96,0.58621549]
[1747789234264,2.28658578,650.49,649.97,1.37855654]
[1747789234459,2.28658578,650.49,649.98,0.58621549]
[1747789234662,2.28658578,650.49,649.99,1.37855654]
[1747789234859,2.28658578,650.49,650.0,0.58621549]
[1747789235062,2.28658578,650.49,650.01,0.58621549]
[1747789235260,2.28658578,650.56,650.02,0.58621549]
[1747789235464,2.28658578,650.56,650.03,0.58621549]
[1747789235664,2.28658578,650.56,649.9,1.021]
[1747789235964,2.28658578,650.56,649.91,0.58630847]
[1747789236167,2.28658578,650.56,649.92,1.37886515]
[1747789236365,2.28658578,650.56,649.93,0.58630847]
[1747789236566,2.28658578,650.56,649.94,0.58630847]
[1747789236769,2.28658578,650.56,649.95,0.58630847]
[1747789236970,2.28658578,650.56,649.96,1.37886515]
[1747789237167,2.28658578,650.56,649.97,0.58634386]
[1747789237362,2.28658578,650.56,649.98,0.58634386]
[1747789237562,2.28658578,650.56,649.99,0.58634386]
[1747789237767,2.28658578,650.56,649.95,0.30767513]
[1747789237962,2.28658578,650.56,649.96,0.5864059]
[1747789238262,2.28658578,650.58,649.97,0.5864059]
[1747789238468,2.28658578,650.58,649.98,0.5864059]
[1747789238762,2.28658578,650.58,649.9,1.021]
[1747789238963,2.28658578,650.58,649.91,0.58644063]
[1747789239168,2.28658578,650.58,649.92,0.58644063]
[1747789239470,2.28658578,650.58,649.93,1.37955707]
[1747789239663,2.28658578,650.58,649.94,0.89413851]
[1747789239862,2.28658578,650.58,649.95,0.58644063]
[1747789240062,3.54058578,650.58,649.96,0.58644063]
[1747789240265,3.54058578,650.58,649.97,1.37955707]
[1747789240468,3.54058578,650.58,649.97,0.79311644]
[1747789240768,3.54058578,650.58,649.98,0.58642655]
[1747789240968,3.54058578,650.58,649.99,1.37954299]